[Event "*** Titled Tuesday Blitz"]
[Site "Chess.com"]
[Date "2020.02.04"]
[Round "9"]
[White "SHIVACalypso"]
[Black "MaxLeto"]
[Result "0-1"]
[WhiteElo "2209"]
[BlackElo "2335"]
[TimeControl "180+2"]
[EndTime "11:11:17 PST"]
[Termination "MaxLeto won by checkmate"]

1. Nf3 {[%clk 0:03:01.9]} 1... d5 {[%clk 0:02:53.7]} 2. c4 {[%clk 0:03:02.5]}
2... d4 {[%clk 0:02:51.2]} 3. e3 {[%clk 0:03:03.2]} 3... c5 {[%clk 0:02:52.4]}
4. exd4 {[%clk 0:03:03.9]} 4... cxd4 {[%clk 0:02:53.4]} 5. b4 {[%clk 0:03:05.6]}
5... f6 {[%clk 0:02:54.1]} 6. Bb2 {[%clk 0:02:56.1]} 6... e5 {[%clk 0:02:55.1]}
7. c5 {[%clk 0:02:56.9]} 7... Nc6 {[%clk 0:02:54.8]} 8. Qb3 {[%clk 0:02:50.9]}
8... Bg4 {[%clk 0:02:29.3]} 9. Bc4 {[%clk 0:02:47.9]} 9... Nh6 {[%clk
0:02:24.5]} 10. d3 {[%clk 0:02:40.2]} 10... a5 {[%clk 0:01:22.9]} 11. a3 {[%clk
0:02:09.7]} 11... Bxf3 {[%clk 0:00:34.9]} 12. gxf3 {[%clk 0:02:06.8]} 12... f5
{[%clk 0:00:36.8]} 13. Nd2 {[%clk 0:01:52]} 13... axb4 {[%clk 0:00:36]} 14. axb4
{[%clk 0:01:51.4]} 14... Rxa1+ {[%clk 0:00:37.9]} 15. Bxa1 {[%clk 0:01:52.9]}
15... Qg5 {[%clk 0:00:35.7]} 16. Qa4 {[%clk 0:01:46.7]} 16... Qg2 {[%clk
0:00:29.4]} 17. Rf1 {[%clk 0:01:40.2]} 17... Be7 {[%clk 0:00:28.8]} 18. Qa8+
{[%clk 0:01:37.7]} 18... Nd8 {[%clk 0:00:27]} 19. Qc8 {[%clk 0:01:24]} 19... Qg6
{[%clk 0:00:13.8]} 20. b5 {[%clk 0:01:12.9]} 20... Nf7 {[%clk 0:00:12.6]} 21.
Nb3 {[%clk 0:01:01.8]} 21... O-O {[%clk 0:00:13]} 22. Qd7 {[%clk 0:00:58.1]}
22... Qf6 {[%clk 0:00:11]} 23. Na5 {[%clk 0:00:52.9]} 23... Bxc5 {[%clk
0:00:09.2]} 24. Nxb7 {[%clk 0:00:51.7]} 24... Bb4+ {[%clk 0:00:09.8]} 25. Kd1
{[%clk 0:00:50.8]} 25... Nxb7 {[%clk 0:00:10.2]} 26. Qxb7 {[%clk 0:00:51.8]}
26... Kh8 {[%clk 0:00:11.1]} 27. Qc6 {[%clk 0:00:37.8]} 27... Qg5 {[%clk
0:00:09.6]} 28. Bb2 {[%clk 0:00:36.7]} 28... Qd2# {[%clk 0:00:10.7]} 0-1

[Event "*** Titled Tuesday Blitz"]
[Site "Chess.com"]
[Date "2020.02.04"]
[Round "9"]
[White "Mr_Sinigami"]
[Black "AntonSmirnov"]
[Result "1-0"]
[WhiteElo "2746"]
[BlackElo "2896"]
[TimeControl "180+2"]
[EndTime "11:11:21 PST"]
[Termination "Mr_Sinigami won by resignation"]

1. e4 {[%clk 0:02:58]} 1... e5 {[%clk 0:02:59.8]} 2. Nf3 {[%clk 0:02:58.7]} 2...
Nf6 {[%clk 0:03:01.1]} 3. Nc3 {[%clk 0:02:59.6]} 3... Nc6 {[%clk 0:03:02.1]} 4.
g3 {[%clk 0:03:01]} 4... Bc5 {[%clk 0:03:01.4]} 5. Bg2 {[%clk 0:03:01.9]} 5...
d6 {[%clk 0:03:02.9]} 6. d3 {[%clk 0:03:03.2]} 6... Bg4 {[%clk 0:03:01.1]} 7.
O-O {[%clk 0:03:03.8]} 7... Qd7 {[%clk 0:03:01.6]} 8. Be3 {[%clk 0:03:04.2]}
8... O-O-O {[%clk 0:02:58.8]} 9. Qd2 {[%clk 0:03:04.2]} 9... Kb8 {[%clk
0:02:56.6]} 10. a3 {[%clk 0:02:59.1]} 10... h5 {[%clk 0:02:50.5]} 11. h4 {[%clk
0:02:55.7]} 11... Bxf3 {[%clk 0:02:47.8]} 12. Bxf3 {[%clk 0:02:56.6]} 12... Ng4
{[%clk 0:02:48.7]} 13. Bxc5 {[%clk 0:02:54.2]} 13... dxc5 {[%clk 0:02:47.5]} 14.
Nd5 {[%clk 0:02:46.9]} 14... Nd4 {[%clk 0:02:45.4]} 15. Bg2 {[%clk 0:02:47.9]}
15... c6 {[%clk 0:02:44.8]} 16. Ne3 {[%clk 0:02:48.9]} 16... g6 {[%clk
0:02:36.4]} 17. Rad1 {[%clk 0:02:48.3]} 17... f5 {[%clk 0:02:36.4]} 18. c3
{[%clk 0:02:43.2]} 18... Ne6 {[%clk 0:02:03.5]} 19. exf5 {[%clk 0:02:41.4]}
19... gxf5 {[%clk 0:02:05.4]} 20. Nxf5 {[%clk 0:02:35.7]} 20... Nf4 {[%clk
0:02:02]} 21. Be4 {[%clk 0:02:34.8]} 21... Rdf8 {[%clk 0:02:02.7]} 22. gxf4
{[%clk 0:02:16.2]} 22... Rxf5 {[%clk 0:02:02.3]} 23. f3 {[%clk 0:02:16.8]} 23...
Nf6 {[%clk 0:01:51.4]} 24. fxe5 {[%clk 0:02:00.9]} 24... Rg8+ {[%clk 0:01:41.8]}
25. Kh2 {[%clk 0:02:01.8]} 25... Nxe4 {[%clk 0:01:29.5]} 26. dxe4 {[%clk
0:01:54.6]} 26... Qxd2+ {[%clk 0:01:22.6]} 27. Rxd2 {[%clk 0:01:54.5]} 27...
Rxe5 {[%clk 0:01:22.4]} 28. Rg1 {[%clk 0:01:53.3]} 28... Rf8 {[%clk 0:01:22.5]}
29. Kg3 {[%clk 0:01:44.7]} 29... Kc7 {[%clk 0:01:16]} 30. Re2 {[%clk 0:01:45.7]}
30... Re7 {[%clk 0:01:13.2]} 31. Kf2 {[%clk 0:01:41.3]} 31... Rf4 {[%clk
0:01:14.1]} 32. Rh1 {[%clk 0:01:31.7]} 32... Ref7 {[%clk 0:01:14.3]} 33. Rh3
{[%clk 0:01:33]} 33... Kd6 {[%clk 0:01:13.7]} 34. Ke3 {[%clk 0:01:34.2]} 34...
R4f6 {[%clk 0:01:05.4]} 35. Rg2 {[%clk 0:01:32.7]} 35... Ke6 {[%clk 0:01:00.6]}
36. Rg5 {[%clk 0:01:33.3]} 36... b6 {[%clk 0:00:57.5]} 37. Rxh5 {[%clk
0:01:31.7]} 37... a5 {[%clk 0:00:56.8]} 38. Rg5 {[%clk 0:01:31.5]} 38... Rh7
{[%clk 0:00:53.3]} 39. h5 {[%clk 0:01:32.2]} 39... Kf7 {[%clk 0:00:54.3]} 40.
Rg6 {[%clk 0:01:29.3]} 40... c4 {[%clk 0:00:47]} 41. Rxf6+ {[%clk 0:01:29.4]}
41... Kxf6 {[%clk 0:00:48.2]} 42. h6 {[%clk 0:01:30.4]} 42... c5 {[%clk
0:00:46.9]} 43. f4 {[%clk 0:01:30.6]} 43... b5 {[%clk 0:00:47.7]} 44. Rh5 {[%clk
0:01:23.8]} 44... Ke7 {[%clk 0:00:46.7]} 45. e5 {[%clk 0:01:23.3]} 45... Ke6
{[%clk 0:00:47.3]} 46. Ke4 {[%clk 0:01:24]} 46... b4 {[%clk 0:00:48.7]} 47. f5+
{[%clk 0:01:24.2]} 47... Kf7 {[%clk 0:00:49.9]} 48. a4 {[%clk 0:01:24]} 1-0

[Event "*** Titled Tuesday Blitz"]
[Site "Chess.com"]
[Date "2020.02.04"]
[Round "9"]
[White "2nd_life"]
[Black "Aygehovit1992"]
[Result "1-0"]
[WhiteElo "2482"]
[BlackElo "2643"]
[TimeControl "180+2"]
[EndTime "11:11:24 PST"]
[Termination "2nd_life won by resignation"]

1. e4 {[%clk 0:03:01.9]} 1... c5 {[%clk 0:01:57]} 2. Nf3 {[%clk 0:02:59.9]} 2...
d6 {[%clk 0:01:58]} 3. d4 {[%clk 0:03:00.9]} 3... cxd4 {[%clk 0:01:59.2]} 4.
Nxd4 {[%clk 0:03:02.8]} 4... Nf6 {[%clk 0:02:00.6]} 5. Nc3 {[%clk 0:03:04.3]}
5... Nc6 {[%clk 0:01:58.9]} 6. f3 {[%clk 0:03:02.2]} 6... e5 {[%clk 0:01:56]} 7.
Nb3 {[%clk 0:03:02]} 7... Be6 {[%clk 0:01:56.2]} 8. Nd5 {[%clk 0:02:56]} 8...
Be7 {[%clk 0:01:56.4]} 9. Be3 {[%clk 0:02:44.8]} 9... O-O {[%clk 0:01:56.7]} 10.
c4 {[%clk 0:02:38.3]} 10... a5 {[%clk 0:01:53.5]} 11. Bd3 {[%clk 0:02:28.3]}
11... a4 {[%clk 0:01:54]} 12. Nc1 {[%clk 0:02:22.8]} 12... Bxd5 {[%clk
0:01:54.8]} 13. cxd5 {[%clk 0:02:22.3]} 13... Nd4 {[%clk 0:01:54.7]} 14. Ne2
{[%clk 0:02:18.9]} 14... Nxe2 {[%clk 0:01:55.6]} 15. Qxe2 {[%clk 0:02:19.6]}
15... Nd7 {[%clk 0:01:56.9]} 16. Bb5 {[%clk 0:02:11.3]} 16... f5 {[%clk
0:01:24.3]} 17. O-O {[%clk 0:02:10.1]} 17... Rf7 {[%clk 0:01:07.9]} 18. Rac1
{[%clk 0:02:01.1]} 18... Bg5 {[%clk 0:01:07.3]} 19. Bxd7 {[%clk 0:00:57.1]}
19... Bxe3+ {[%clk 0:01:01.2]} 20. Qxe3 {[%clk 0:00:58.3]} 20... Qxd7 {[%clk
0:01:02.4]} 21. exf5 {[%clk 0:00:52.7]} 21... Rxf5 {[%clk 0:01:00.9]} 22. Qb6
{[%clk 0:00:53.3]} 22... Rf7 {[%clk 0:00:57.9]} 23. Rc4 {[%clk 0:00:51.4]} 23...
h6 {[%clk 0:00:55.8]} 24. Rfc1 {[%clk 0:00:51.2]} 24... a3 {[%clk 0:00:47.9]}
25. bxa3 {[%clk 0:00:23.1]} 25... Rxa3 {[%clk 0:00:47.2]} 26. Rc7 {[%clk
0:00:18.4]} 26... Qf5 {[%clk 0:00:46.1]} 27. Rxf7 {[%clk 0:00:18]} 27... Qxf7
{[%clk 0:00:46.6]} 28. Qxd6 {[%clk 0:00:18.8]} 28... Qf4 {[%clk 0:00:40.4]} 29.
Qxa3 {[%clk 0:00:09.8]} 29... Qd4+ {[%clk 0:00:40.2]} 30. Kh1 {[%clk 0:00:10.5]}
30... Qxd5 {[%clk 0:00:42.1]} 31. Qb3 {[%clk 0:00:10.2]} 1-0

[Event "*** Titled Tuesday Blitz"]
[Site "Chess.com"]
[Date "2020.02.04"]
[Round "9"]
[White "killer311"]
[Black "NiranjanNavalgund"]
[Result "0-1"]
[WhiteElo "2240"]
[BlackElo "2409"]
[TimeControl "180+2"]
[EndTime "11:11:26 PST"]
[Termination "NiranjanNavalgund won by resignation"]

1. d4 {[%clk 0:03:01.9]} 1... Nf6 {[%clk 0:03:00.1]} 2. Nf3 {[%clk 0:03:02.9]}
2... e6 {[%clk 0:03:00.4]} 3. e3 {[%clk 0:03:03.4]} 3... c5 {[%clk 0:03:00.1]}
4. c4 {[%clk 0:03:04.1]} 4... b6 {[%clk 0:02:58.4]} 5. Nc3 {[%clk 0:03:04.2]}
5... Bb7 {[%clk 0:02:59.7]} 6. d5 {[%clk 0:03:04.6]} 6... exd5 {[%clk
0:02:59.5]} 7. cxd5 {[%clk 0:03:06]} 7... d6 {[%clk 0:03:01.4]} 8. Bb5+ {[%clk
0:03:06.6]} 8... Nbd7 {[%clk 0:03:01.5]} 9. a4 {[%clk 0:03:06.6]} 9... g6 {[%clk
0:03:02.2]} 10. O-O {[%clk 0:03:06]} 10... Bg7 {[%clk 0:03:03.8]} 11. e4 {[%clk
0:03:07.2]} 11... O-O {[%clk 0:03:04.4]} 12. Bf4 {[%clk 0:03:07.4]} 12... Ne8
{[%clk 0:03:02.2]} 13. Re1 {[%clk 0:03:06.5]} 13... a6 {[%clk 0:03:03]} 14. Bf1
{[%clk 0:02:47.6]} 14... f6 {[%clk 0:02:55.9]} 15. h4 {[%clk 0:02:44.4]} 15...
Ne5 {[%clk 0:02:56.2]} 16. g3 {[%clk 0:02:43.5]} 16... h6 {[%clk 0:02:54.8]} 17.
Bh3 {[%clk 0:02:43.2]} 17... Bc8 {[%clk 0:02:53.7]} 18. Bxc8 {[%clk 0:02:40.5]}
18... Qxc8 {[%clk 0:02:55.6]} 19. Kg2 {[%clk 0:02:34.9]} 19... g5 {[%clk
0:02:53.2]} 20. hxg5 {[%clk 0:02:35.2]} 20... fxg5 {[%clk 0:02:54.2]} 21. Bxe5
{[%clk 0:02:34.7]} 21... Bxe5 {[%clk 0:02:55]} 22. Nxe5 {[%clk 0:02:34.9]} 22...
dxe5 {[%clk 0:02:56.9]} 23. Qh5 {[%clk 0:02:35]} 23... Rf6 {[%clk 0:02:55.5]}
24. Re3 {[%clk 0:02:26]} 24... Ng7 {[%clk 0:02:56.6]} 25. Qe2 {[%clk 0:02:18.7]}
25... Ra7 {[%clk 0:02:50.5]} 26. Rf1 {[%clk 0:02:15.7]} 26... Raf7 {[%clk
0:02:51.3]} 27. Nd1 {[%clk 0:02:10.7]} 27... h5 {[%clk 0:02:17.3]} 28. Rb3
{[%clk 0:01:56.4]} 28... h4 {[%clk 0:02:13.9]} 29. g4 {[%clk 0:01:54.5]} 29...
Ne8 {[%clk 0:02:01.8]} 30. f3 {[%clk 0:01:53.2]} 30... h3+ {[%clk 0:01:57.6]}
31. Kh2 {[%clk 0:01:48.8]} 31... c4 {[%clk 0:01:43.4]} 32. Rc3 {[%clk
0:01:47.5]} 32... b5 {[%clk 0:01:44.7]} 33. Ne3 {[%clk 0:01:46.4]} 33... Nd6
{[%clk 0:01:41.1]} 34. axb5 {[%clk 0:01:46.7]} 34... axb5 {[%clk 0:01:39.2]} 35.
Nf5 {[%clk 0:01:47.1]} 35... Qc5 {[%clk 0:01:31.7]} 36. Qd2 {[%clk 0:01:37.7]}
36... Rg6 {[%clk 0:01:25.6]} 37. Ra1 {[%clk 0:01:23.5]} 37... b4 {[%clk
0:01:24.9]} 38. Rcc1 {[%clk 0:01:21.8]} 38... Nb5 {[%clk 0:01:14.2]} 39. Kg3
{[%clk 0:01:20.1]} 39... c3 {[%clk 0:01:13]} 40. bxc3 {[%clk 0:01:18.8]} 40...
bxc3 {[%clk 0:01:14.9]} 41. Qd3 {[%clk 0:01:17.3]} 41... h2 {[%clk 0:01:10.6]}
42. Ra5 {[%clk 0:01:13.2]} 42... Qg1+ {[%clk 0:01:09.2]} 43. Rxg1 {[%clk
0:01:11]} 43... hxg1=Q+ {[%clk 0:01:09.4]} 44. Kh3 {[%clk 0:01:10.7]} 44... Rh7+
{[%clk 0:01:07.7]} 0-1

[Event "*** Titled Tuesday Blitz"]
[Site "Chess.com"]
[Date "2020.02.04"]
[Round "9"]
[White "W_Amadeus"]
[Black "Yoshkinkot"]
[Result "1-0"]
[WhiteElo "2727"]
[BlackElo "2585"]
[TimeControl "180+2"]
[EndTime "11:11:29 PST"]
[Termination "W_Amadeus won by resignation"]

1. e4 {[%clk 0:03:01.9]} 1... c6 {[%clk 0:03:00.7]} 2. d4 {[%clk 0:03:02.3]}
2... d5 {[%clk 0:03:02.1]} 3. Nd2 {[%clk 0:03:03.8]} 3... dxe4 {[%clk
0:03:03.2]} 4. Nxe4 {[%clk 0:03:05.7]} 4... Bf5 {[%clk 0:03:04.8]} 5. Ng3 {[%clk
0:03:06.9]} 5... Bg6 {[%clk 0:03:06.4]} 6. h4 {[%clk 0:03:08.4]} 6... h6 {[%clk
0:03:07.5]} 7. Nf3 {[%clk 0:03:09.8]} 7... Nd7 {[%clk 0:03:08.5]} 8. h5 {[%clk
0:03:11]} 8... Bh7 {[%clk 0:03:09.8]} 9. Bd3 {[%clk 0:03:12.7]} 9... Bxd3 {[%clk
0:03:11.2]} 10. Qxd3 {[%clk 0:03:14.6]} 10... e6 {[%clk 0:03:12.4]} 11. Bd2
{[%clk 0:03:16.2]} 11... Be7 {[%clk 0:03:12.8]} 12. O-O-O {[%clk 0:03:16.1]}
12... Ngf6 {[%clk 0:03:14.3]} 13. Kb1 {[%clk 0:03:17.1]} 13... O-O {[%clk
0:03:13.6]} 14. Ne4 {[%clk 0:03:17.7]} 14... Nxe4 {[%clk 0:03:14.9]} 15. Qxe4
{[%clk 0:03:19.6]} 15... Nf6 {[%clk 0:03:16.6]} 16. Qe2 {[%clk 0:03:20.9]} 16...
Qd5 {[%clk 0:03:18.1]} 17. Be3 {[%clk 0:03:21.2]} 17... Ng4 {[%clk 0:03:09.8]}
18. Bc1 {[%clk 0:03:15.2]} 18... Bd6 {[%clk 0:02:54]} 19. c4 {[%clk 0:02:41.9]}
19... Qf5+ {[%clk 0:02:53.5]} 20. Ka1 {[%clk 0:02:42.7]} 20... Nf6 {[%clk
0:02:50]} 21. Rdg1 {[%clk 0:01:51.7]} 21... Qe4 {[%clk 0:02:46.6]} 22. Be3
{[%clk 0:01:45.3]} 22... b5 {[%clk 0:02:45]} 23. g4 {[%clk 0:01:31]} 23... bxc4
{[%clk 0:02:07.1]} 24. g5 {[%clk 0:00:32.7]} 24... hxg5 {[%clk 0:02:07.2]} 25.
h6 {[%clk 0:00:29.6]} 25... g6 {[%clk 0:01:16.7]} 26. Bxg5 {[%clk 0:00:26.8]}
26... Qf5 {[%clk 0:00:10.2]} 27. Nh4 {[%clk 0:00:27.5]} 1-0

[Event "*** Titled Tuesday Blitz"]
[Site "Chess.com"]
[Date "2020.02.04"]
[Round "9"]
[White "GelmanAlexander"]
[Black "Leonid_Starozhilov"]
[Result "1-0"]
[WhiteElo "2474"]
[BlackElo "2669"]
[TimeControl "180+2"]
[EndTime "11:11:42 PST"]
[Termination "GelmanAlexander won by resignation"]

1. e4 {[%clk 0:03:01.9]} 1... g6 {[%clk 0:03:00.9]} 2. d4 {[%clk 0:03:01.5]}
2... Bg7 {[%clk 0:03:01.9]} 3. Nc3 {[%clk 0:03:01.7]} 3... d6 {[%clk 0:03:02.2]}
4. f4 {[%clk 0:03:02.4]} 4... Nf6 {[%clk 0:03:02.7]} 5. Nf3 {[%clk 0:03:02.9]}
5... O-O {[%clk 0:03:03.6]} 6. e5 {[%clk 0:03:03.5]} 6... dxe5 {[%clk
0:03:03.3]} 7. fxe5 {[%clk 0:03:04.4]} 7... Nd5 {[%clk 0:03:04.6]} 8. h4 {[%clk
0:03:04.7]} 8... Bg4 {[%clk 0:02:59.8]} 9. h5 {[%clk 0:03:05.5]} 9... c5 {[%clk
0:02:53.5]} 10. hxg6 {[%clk 0:03:04.8]} 10... hxg6 {[%clk 0:02:54.4]} 11. Rh4
{[%clk 0:02:54.7]} 11... Bf5 {[%clk 0:01:05.6]} 12. Bc4 {[%clk 0:01:59.1]} 12...
Nb6 {[%clk 0:00:55.5]} 13. Bd3 {[%clk 0:01:46.4]} 13... cxd4 {[%clk 0:00:29.4]}
14. Bxf5 {[%clk 0:01:34]} 14... dxc3 {[%clk 0:00:28.1]} 15. Bd3 {[%clk
0:01:31.7]} 15... cxb2 {[%clk 0:00:24.4]} 16. Bxb2 {[%clk 0:01:31.9]} 16... e6
{[%clk 0:00:25.1]} 17. Qe2 {[%clk 0:01:19]} 17... Nc6 {[%clk 0:00:23.8]} 18.
O-O-O {[%clk 0:01:09.5]} 18... Qe7 {[%clk 0:00:07.6]} 19. Rdh1 {[%clk
0:01:02.7]} 19... Rfd8 {[%clk 0:00:08]} 20. g3 {[%clk 0:00:51.8]} 20... Nb4
{[%clk 0:00:04.3]} 21. Qh2 {[%clk 0:00:51.6]} 21... Nxd3+ {[%clk 0:00:05.3]} 22.
cxd3 {[%clk 0:00:52.3]} 22... Qc5+ {[%clk 0:00:06.7]} 23. Kb1 {[%clk 0:00:53.3]}
23... Kf8 {[%clk 0:00:08.3]} 24. Rc1 {[%clk 0:00:38.2]} 24... Qe3 {[%clk
0:00:08.1]} 25. Rh8+ {[%clk 0:00:30.5]} 25... Ke7 {[%clk 0:00:09.2]} 26. Qh4+
{[%clk 0:00:30.8]} 26... g5 {[%clk 0:00:10.8]} 27. Qb4+ {[%clk 0:00:23.7]} 27...
Kd7 {[%clk 0:00:10]} 28. Qb5+ {[%clk 0:00:20]} 28... Ke7 {[%clk 0:00:09.2]} 29.
Ba3+ {[%clk 0:00:21.2]} 1-0

[Event "*** Titled Tuesday Blitz"]
[Site "Chess.com"]
[Date "2020.02.04"]
[Round "9"]
[White "EmmaChess"]
[Black "Tayson_7"]
[Result "1-0"]
[WhiteElo "2513"]
[BlackElo "2657"]
[TimeControl "180+2"]
[EndTime "11:11:55 PST"]
[Termination "EmmaChess won on time"]

1. Nf3 {[%clk 0:03:01.9]} 1... c5 {[%clk 0:03:00.6]} 2. d3 {[%clk 0:03:03.8]}
2... Nc6 {[%clk 0:03:00.4]} 3. Nbd2 {[%clk 0:03:05.7]} 3... g6 {[%clk
0:03:01.4]} 4. e4 {[%clk 0:03:07.6]} 4... Bg7 {[%clk 0:03:03.3]} 5. Be2 {[%clk
0:03:09.5]} 5... d6 {[%clk 0:03:04.4]} 6. O-O {[%clk 0:03:11.4]} 6... Nf6 {[%clk
0:03:06.1]} 7. Re1 {[%clk 0:03:13]} 7... e5 {[%clk 0:03:07.6]} 8. Bf1 {[%clk
0:03:14.7]} 8... O-O {[%clk 0:03:09.5]} 9. a4 {[%clk 0:03:16.3]} 9... h6 {[%clk
0:03:09.5]} 10. c3 {[%clk 0:03:17.5]} 10... Be6 {[%clk 0:03:10.7]} 11. Nc4
{[%clk 0:03:17.8]} 11... Qc7 {[%clk 0:03:09.4]} 12. a5 {[%clk 0:03:19.2]} 12...
Rad8 {[%clk 0:03:05.7]} 13. Qa4 {[%clk 0:03:10.4]} 13... Nh5 {[%clk 0:02:59.7]}
14. Ne3 {[%clk 0:03:00.6]} 14... f5 {[%clk 0:02:55.7]} 15. exf5 {[%clk
0:02:38.3]} 15... gxf5 {[%clk 0:02:56.3]} 16. Qh4 {[%clk 0:02:39.3]} 16... Qf7
{[%clk 0:02:47.6]} 17. Qa4 {[%clk 0:02:00.9]} 17... Nf4 {[%clk 0:02:28]} 18. a6
{[%clk 0:01:59.9]} 18... Rb8 {[%clk 0:02:02.2]} 19. axb7 {[%clk 0:01:58.8]}
19... Qxb7 {[%clk 0:02:04.1]} 20. Nc4 {[%clk 0:01:55.7]} 20... Ng6 {[%clk
0:01:19.5]} 21. Nxd6 {[%clk 0:01:52.9]} 21... Qc7 {[%clk 0:01:19.7]} 22. Nb5
{[%clk 0:01:41.6]} 22... Qb6 {[%clk 0:00:35.8]} 23. d4 {[%clk 0:01:25.5]} 23...
e4 {[%clk 0:00:30.8]} 24. dxc5 {[%clk 0:01:25.7]} 24... Qxc5 {[%clk 0:00:25.5]}
25. Be3 {[%clk 0:01:15.6]} 25... Qe7 {[%clk 0:00:26.3]} 26. Nfd4 {[%clk
0:01:12.7]} 26... Nxd4 {[%clk 0:00:21.3]} 27. Nxd4 {[%clk 0:01:14.6]} 27... Bd7
{[%clk 0:00:22.7]} 28. Qxa7 {[%clk 0:01:12.7]} 28... f4 {[%clk 0:00:22.1]} 29.
Bc4+ {[%clk 0:01:11.1]} 29... Kh7 {[%clk 0:00:21.2]} 30. Bc1 {[%clk 0:01:04.2]}
30... Nh4 {[%clk 0:00:10]} 31. Bd5 {[%clk 0:00:45]} 31... e3 {[%clk 0:00:09.2]}
32. fxe3 {[%clk 0:00:41.6]} 32... Qg5 {[%clk 0:00:09]} 33. Be4+ {[%clk
0:00:27.7]} 33... Bf5 {[%clk 0:00:08.4]} 34. exf4 {[%clk 0:00:27.1]} 1-0

[Event "*** Titled Tuesday Blitz"]
[Site "Chess.com"]
[Date "2020.02.04"]
[Round "9"]
[White "Azatic"]
[Black "Abund"]
[Result "1-0"]
[WhiteElo "2661"]
[BlackElo "2734"]
[TimeControl "180+2"]
[EndTime "11:11:56 PST"]
[Termination "Azatic won by checkmate"]

1. e4 {[%clk 0:03:01.9]} 1... c5 {[%clk 0:02:59.4]} 2. Nf3 {[%clk 0:03:03]} 2...
Nc6 {[%clk 0:03:00.7]} 3. d4 {[%clk 0:03:04.5]} 3... cxd4 {[%clk 0:03:01.9]} 4.
Nxd4 {[%clk 0:03:06.4]} 4... Nf6 {[%clk 0:03:03.2]} 5. Nc3 {[%clk 0:03:07.7]}
5... e5 {[%clk 0:03:04.5]} 6. Ndb5 {[%clk 0:03:07.3]} 6... d6 {[%clk 0:03:05.8]}
7. Bg5 {[%clk 0:03:08.6]} 7... a6 {[%clk 0:03:06.6]} 8. Na3 {[%clk 0:03:10]}
8... b5 {[%clk 0:03:07.7]} 9. Bxf6 {[%clk 0:03:11.1]} 9... gxf6 {[%clk
0:03:07.5]} 10. Nd5 {[%clk 0:03:12.6]} 10... f5 {[%clk 0:03:05.7]} 11. exf5
{[%clk 0:03:14.5]} 11... Bxf5 {[%clk 0:02:54.5]} 12. c3 {[%clk 0:03:14.7]} 12...
Bg7 {[%clk 0:02:45.7]} 13. Nc2 {[%clk 0:03:15.2]} 13... Be6 {[%clk 0:02:40.9]}
14. g3 {[%clk 0:03:15.8]} 14... O-O {[%clk 0:02:32.8]} 15. Bg2 {[%clk
0:03:16.7]} 15... Rc8 {[%clk 0:02:33.1]} 16. O-O {[%clk 0:03:17.4]} 16... f5
{[%clk 0:02:30.9]} 17. f4 {[%clk 0:03:18.3]} 17... Kh8 {[%clk 0:02:06.7]} 18.
Nce3 {[%clk 0:03:18.3]} 18... Na5 {[%clk 0:02:00.2]} 19. Kh1 {[%clk 0:03:14.8]}
19... Nc4 {[%clk 0:02:00.8]} 20. Nxc4 {[%clk 0:03:07.5]} 20... bxc4 {[%clk
0:01:50.7]} 21. Qe2 {[%clk 0:03:07.9]} 21... Rc5 {[%clk 0:01:42.5]} 22. Rad1
{[%clk 0:03:03.9]} 22... e4 {[%clk 0:01:33.1]} 23. Ne3 {[%clk 0:03:02.7]} 23...
d5 {[%clk 0:01:32.1]} 24. g4 {[%clk 0:03:02.1]} 24... fxg4 {[%clk 0:01:23.6]}
25. f5 {[%clk 0:03:04]} 25... Bf7 {[%clk 0:01:16.5]} 26. Nxg4 {[%clk 0:03:04.2]}
26... Bh5 {[%clk 0:01:03]} 27. h3 {[%clk 0:02:46.9]} 27... Qe7 {[%clk
0:00:54.4]} 28. Qe3 {[%clk 0:02:40.2]} 28... Bxg4 {[%clk 0:00:48.7]} 29. hxg4
{[%clk 0:02:39.6]} 29... Bf6 {[%clk 0:00:49.8]} 30. Rf2 {[%clk 0:02:15.4]} 30...
Rg8 {[%clk 0:00:46.6]} 31. Bh3 {[%clk 0:02:15.1]} 31... Rb5 {[%clk 0:00:43.3]}
32. Rfd2 {[%clk 0:02:13]} 32... Qe5 {[%clk 0:00:40.4]} 33. a4 {[%clk 0:02:04.5]}
33... Ra5 {[%clk 0:00:24.2]} 34. Bg2 {[%clk 0:01:55.1]} 34... Rxa4 {[%clk
0:00:11.3]} 35. Rxd5 {[%clk 0:01:54.1]} 35... Qb8 {[%clk 0:00:10.5]} 36. Qxe4
{[%clk 0:01:53.5]} 36... Qxb2 {[%clk 0:00:09.9]} 37. Rd7 {[%clk 0:01:38.8]}
37... Qxc3 {[%clk 0:00:08.7]} 38. Qb7 {[%clk 0:01:37]} 38... Bg7 {[%clk
0:00:06.6]} 39. Rf1 {[%clk 0:01:30.4]} 39... Ra1 {[%clk 0:00:07.5]} 40. g5
{[%clk 0:01:18.5]} 40... Rxf1+ {[%clk 0:00:07.9]} 41. Bxf1 {[%clk 0:01:20.4]}
41... Re8 {[%clk 0:00:04.6]} 42. f6 {[%clk 0:01:10.8]} 42... Qa1 {[%clk
0:00:05.4]} 43. fxg7+ {[%clk 0:01:10.7]} 43... Kg8 {[%clk 0:00:06.1]} 44. Qd5+
{[%clk 0:01:11.6]} 44... Re6 {[%clk 0:00:05.3]} 45. Qxe6# {[%clk 0:01:13]} 1-0

[Event "*** Titled Tuesday Blitz"]
[Site "Chess.com"]
[Date "2020.02.04"]
[Round "9"]
[White "crescentmoon2411"]
[Black "vlad_Sid"]
[Result "0-1"]
[WhiteElo "2891"]
[BlackElo "2724"]
[TimeControl "180+2"]
[EndTime "11:11:57 PST"]
[Termination "vlad_Sid won by resignation"]

1. d4 {[%clk 0:03:01.9]} 1... Nf6 {[%clk 0:03:00.7]} 2. Nf3 {[%clk 0:03:02.1]}
2... d5 {[%clk 0:02:59.9]} 3. c4 {[%clk 0:03:01.1]} 3... e6 {[%clk 0:03:01.1]}
4. Nc3 {[%clk 0:03:01.9]} 4... Bb4 {[%clk 0:03:01.4]} 5. Bg5 {[%clk 0:02:57.3]}
5... dxc4 {[%clk 0:03:02]} 6. e4 {[%clk 0:02:47.7]} 6... c5 {[%clk 0:03:01.8]}
7. e5 {[%clk 0:02:41.7]} 7... cxd4 {[%clk 0:02:58.9]} 8. exf6 {[%clk 0:02:24.5]}
8... gxf6 {[%clk 0:02:52.1]} 9. Nxd4 {[%clk 0:02:18.5]} 9... Bxc3+ {[%clk
0:02:44.7]} 10. bxc3 {[%clk 0:02:20.4]} 10... fxg5 {[%clk 0:02:45.6]} 11. Bxc4
{[%clk 0:02:20.9]} 11... Qc7 {[%clk 0:02:11]} 12. Bb5+ {[%clk 0:02:20.4]} 12...
Bd7 {[%clk 0:02:06.5]} 13. O-O {[%clk 0:02:21.2]} 13... a6 {[%clk 0:02:03.2]}
14. Bxd7+ {[%clk 0:02:10.7]} 14... Nxd7 {[%clk 0:02:05.1]} 15. Qh5 {[%clk
0:02:11.3]} 15... Nc5 {[%clk 0:01:35.8]} 16. Qxg5 {[%clk 0:02:07.9]} 16... Qe7
{[%clk 0:01:36.6]} 17. Qe3 {[%clk 0:01:46.5]} 17... O-O-O {[%clk 0:01:32.3]} 18.
Rab1 {[%clk 0:01:45.6]} 18... Rhg8 {[%clk 0:01:21.7]} 19. g3 {[%clk 0:01:45.2]}
19... h5 {[%clk 0:01:20.9]} 20. Rb4 {[%clk 0:01:44.8]} 20... Qg5 {[%clk
0:01:00.8]} 21. Rc4 {[%clk 0:01:41.8]} 21... Qd5 {[%clk 0:00:47.3]} 22. Qe2
{[%clk 0:01:32.7]} 22... Kb8 {[%clk 0:00:42.5]} 23. Rb1 {[%clk 0:01:32.7]} 23...
Ka8 {[%clk 0:00:33.9]} 24. Rcb4 {[%clk 0:01:29.8]} 24... Rd7 {[%clk 0:00:31.8]}
25. Nf3 {[%clk 0:01:10.1]} 25... Qd3 {[%clk 0:00:22]} 26. Qxd3 {[%clk
0:01:09.5]} 26... Nxd3 {[%clk 0:00:23.9]} 27. Rh4 {[%clk 0:01:03.8]} 27... Rc8
{[%clk 0:00:22.2]} 28. Rxh5 {[%clk 0:00:38.3]} 28... Rxc3 {[%clk 0:00:22.9]} 29.
Rd1 {[%clk 0:00:31.5]} 29... Nf4 {[%clk 0:00:13.3]} 30. Rh8+ {[%clk 0:00:31.6]}
30... Ka7 {[%clk 0:00:14.2]} 31. Rf1 {[%clk 0:00:20]} 31... Ng6 {[%clk
0:00:11.5]} 0-1